Cogmind - Beta 13 @@@ ROGUE MODE // 2024.03.19 @ 04:59:10 Player: Carpathian Result: Destroyed by G-34 Mercenary with Small Laser Performance ------------- Evolutions (1) 500 Regions Visited (3) 600 Robots Destroyed (25) 125 Value Destroyed (668) 668 Prototype IDs (0) 0 Alien Tech Used (0) 0 Bonus (0) 0 TOTAL SCORE: 1893 Bonus ------- None Cogmind --------- Core Integrity 0/400 Matter 400/400 Energy 99/100 System Corruption 0% Temperature Cool (6) Movement Core (1450) Ox28 Location -9/Mines Parts ------- > --- POWER (1) -------- (None) > --- PROPULSION (2) --- (None) > --- UTILITY (4) ------ Huge Storage Unit Medium Matter Pod > --- WEAPON (2) ------- Ripper > --- INVENTORY (25) --- Ion Engine Aluminum Leg Improved Heat Sink Light Assault Rifle Rocket Launcher Peak State ------------ > --- POWER ------------ Ion Engine > --- PROPULSION ------- Aluminum Leg Aluminum Leg > --- UTILITY ---------- Heat Sink Huge Storage Unit Medium Matter Pod Sensor Array > --- WEAPON ----------- Particle Gun Ripper > --- INVENTORY -------- Improved Heat Sink Light Assault Rifle Rocket Launcher [Rating: 13] Favorites ----------- Power Ion Engine Engine Ion Engine Propulsion Light Treads Treads Light Treads Leg Aluminum Leg Utility Sensor Array Device Sensor Array Storage Huge Storage Unit Weapon Light Assault Rifle Energy Gun Particle Gun Ballistic Gun Light Assault Rifle Launcher Grenade Launcher Slashing Weapon Ripper Build | -11 -10 -9 -9 ------- Run | Yrd Mat Mat Min Slots Evolved 2 | . . 2 . Power . | . . . . Propulsion . | . . . . Utility 2 | . . 2 . Weapon . | . . . . Parts Attached 21 | 6 3 4 8 Power 4 | 1 1 . 2 Engine 4 | 1 1 . 2 Core . | . . . . Reactor . | . . . . Propulsion 7 | 2 1 2 2 Treads 2 | . . 2 . Leg 5 | 2 1 . 2 Wheel . | . . . . Hover . | . . . . Flight . | . . . . Utility 5 | 1 1 2 1 Device 2 | . 1 . 1 Storage 3 | 1 . 2 . Processor . | . . . . Hackware . | . . . . Protection . | . . . . Artifact . | . . . . Weapon 5 | 2 . . 3 Energy Gun 2 | 1 . . 1 Energy Cannon . | . . . . Ballistic Gun 1 | 1 . . . Ballistic Cannon . | . . . . Launcher 1 | . . . 1 Special Weapon . | . . . . Impact Weapon . | . . . . Slashing Weapon 1 | . . . 1 Piercing Weapon . | . . . . Special Melee Weapon . | . . . . Unidentified Prototypes . | . . . . Parts Lost 7 | . . . 7 Power 1 | . . . 1 Propulsion 3 | . . . 3 Utility 2 | . . . 2 Weapon 1 | . . . 1 Highest Loss Streak 5 | . . . 5 To Critical Strikes . | . . . . Average Slot Usage (%) 92 | . 98 77 94 Engine 11 | . 14 11 10 Treads 13 | . . 19 15 Leg 6 | . 28 2 3 Device 18 | . 12 11 21 Storage 19 | . 14 11 22 Energy Gun 6 | . 14 11 4 Ballistic Gun 10 | . 14 11 9 Launcher 3 | . . . 4 Naked Turns . | . . . . Heaviest Build 93 | 10 13 90 93 Greatest Support 40 | 20 20 40 40 Greatest Overweight (x) 9 | . . 2 9 Average Overweight (x) 1 | . . 1 2 Largest Inventory Capacity 25 | 8 8 25 25 Average Capacity 22 | 6 8 23 25 Most Carried 7 | 3 7 6 5 Average Carried 2 | 1 4 3 1 Final Capacity 25 | 8 8 25 25 Final Carried 5 | 3 5 4 5 Class Distribution -------------------- 88% | Mutant 11% | Scavenger-Mutant Dominant Class ---------------- Mutant | -10/Materials Mutant | -9/Materials Mutant | -9/Mines Resources | -11 -10 -9 -9 ----------- Run | Yrd Mat Mat Min Matter Collected 604 | 185 118 45 256 Remotely . | . . . . Salvage Created 778 | . 125 165 488 Parts 47 | . 8 10 29 Haulers Intercepted . | . . . . Recyclers Shooed . | . . . . Parts Field Recycled . | . . . . Retrieved Matter . | . . . . Parts Self-Destructed . | . . . . Prevented . | . . . . Kills | -11 -10 -9 -9 ------- Run | Yrd Mat Mat Min Combat Hostiles Destroyed 22 | . 3 4 15 Melee 1 | . . . 1 Guns 16 | . 3 4 9 AOE 5 | . . . 5 Classes Destroyed 6 | . 1 . 5 Builder 1 | . . . 1 Tunneler 1 | . . . 1 Recycler 2 | . . . 2 Swarmer 4 | . . . 4 Grunt 17 | . 3 4 10 Assembled 1 | . . . 1 Best Kill Streak 7 | . 2 2 7 Combat Bots Only 4 | . 2 2 4 Max Kills in Single Turn 2 | . 1 1 2 Gunslinging . | . . . . Exploded 2 | . . . 2 Melee 1 | . . . 1 Uniques/NPCs Destroyed . | . . . . Combat | -11 -10 -9 -9 -------- Run | Yrd Mat Mat Min Hostile Shots Fired 191 | . 26 28 137 Missed 54 | . 8 8 38 Damage Taken 1594 | . 242 218 1134 Core 458 | . 58 31 369 Absorbed by Shields . | . . . . Core Remaining (%) 88 | 100 76 . . Volleys Fired 54 | . 13 15 26 Largest 2 | . 2 2 2 Hottest 85 | . 60 60 85 Shots Fired 106 | . 26 30 50 Gun 101 | . 26 30 45 Cannon . | . . . . Launcher 5 | . . . 5 Special . | . . . . Kinetic 54 | . 13 15 26 Thermal 47 | . 13 15 19 Explosive 5 | . . . 5 Electromagnetic . | . . . . Robot Hit Streak 13 | . 4 5 13 Robot Miss Streak 4 | . 4 2 3 Penetration Max . | . . . . Secondary Targets 2 | . 1 . 1 Max Gunslinging Chain 1 | . 1 . 1 Shots Hit Robots 71 | . 12 19 40 Core Hits 53 | . 8 8 37 Critical Kills 1 | . 1 . . Critical Parts Destroyed . | . . . . Critical Strikes 1 | . 1 . . Destroy 1 | . 1 . . Melee Attacks 10 | . . . 10 Impact . | . . . . Slashing 10 | . . . 10 Piercing . | . . . . Sneak Attacks . | . . . . Combat Hostiles . | . . . . Follow-up Attacks . | . . . . Damage Inflicted 1483 | . 154 184 1145 Guns 653 | . 154 182 317 Cannons . | . . . . Explosions 616 | . . . 616 Melee 212 | . . . 212 Ramming 2 | . . 2 . Kinetic 244 | . 54 73 117 Thermal 409 | . 100 109 200 Explosive 616 | . . . 616 Electromagnetic . | . . . . Impact . | . . . . Slashing 212 | . . . 212 Piercing . | . . . . Highest Corruption . | . . . . Average Corruption . | . . . . Corruption Purged . | . . . . Corruption Blocked . | . . . . Overload Shots . | . . . . Overflow Damage 11 | . . . 11 Projectiles . | . . . . Explosions 11 | . . . 11 Melee . | . . . . Knockbacks . | . . . . Impact . | . . . . Kinetic . | . . . . Secondary . | . . . . Self-Inflicted Damage 31 | . . . 31 Shots 1 | . . . 1 Rammed . | . . . . Targets Rammed 1 | . . 1 . Kicked 1 | . . 1 . Crushed . | . . . . Highest Temperature 186 | . 186 40 45 Average Temperature 39 | . 79 17 16 Received Heat Transfer 819 | . 153 120 546 Siege Activations . | . . . . Robots Corrupted . | . . . . Combat Hostiles . | . . . . Parts Fried . | . . . . Impact Corruptions . | . . . . Robots Melted . | . . . . Combat Hostiles . | . . . . Parts Melted 1 | . . . 1 Heat Transferred 956 | . 225 250 481 Parts Sabotaged . | . . . . Parts Stolen . | . . . . Parts Stripped . | . . . . Power Chain Reactions . | . . . . Alert | -11 -10 -9 -9 ------- Run | Yrd Mat Mat Min Peak Influence 179 | . 70 159 179 Initial 61 | . . 29 61 Average 63 | . 28 97 65 Maximum Alert Level . | . . . . Low Security (%) 100 | 100 100 100 100 Level 1 . | . . . . Level 2 . | . . . . Level 3 . | . . . . Level 4 . | . . . . Level 5 . | . . . . High Security . | . . . . Max Security . | . . . . Squads Dispatched 2 | . . 2 . Investigation 1 | . . 1 . Extermination . | . . . . Reinforcement 1 | . . 1 . Assault . | . . . . Garrison . | . . . . Intercept . | . . . . Searches Triggered . | . . . . Construction Impeded . | . . . . Haulers Reinforced . | . . . . Active Scanning Responses . | . . . . Cargo Convoy Interrupts . | . . . . Stealth | -11 -10 -9 -9 --------- Run | Yrd Mat Mat Min Distress Signals . | . . . . Communications Jammed . | . . . . Distress Signals . | . . . . Times Spotted 31 | . 4 6 21 Peak Tracking Total 4 | . 2 3 4 Tactical Retreats 3 | . . 1 2 Traps | -11 -10 -9 -9 ------- Run | Yrd Mat Mat Min Traps Triggered 1 | . . 1 . Indirectly . | . . . . Trap Hack Attempts . | . . . . Triggered . | . . . . Disarmed . | . . . . Reprogrammed . | . . . . Reused . | . . . . Traps Extracted . | . . . . Installed . | . . . . Triggered 1 | . . . 1 Machines | -11 -10 -9 -9 ---------- Run | Yrd Mat Mat Min Machines Disabled . | . . . . Max in Single Turn . | . . . . Machines Repaired . | . . . . Machines Dismantled . | . . . . Machines Sabotaged . | . . . . Overloaded Fab Kills . | . . . . Hacking | -11 -10 -9 -9 --------- Run | Yrd Mat Mat Min Machines Accessed 1 | . . 1 . Terminals 1 | . . 1 . Fabricators . | . . . . Repair Stations . | . . . . Recycling Units . | . . . . Scanalyzers . | . . . . Garrison Access . | . . . . Total Hacks 3 | . . 3 . Successful 2 | . . 2 . Failed 1 | . . 1 . Catastrophic . | . . . . Database Lockouts . | . . . . Manual . | . . . . Terminals 3 | . . 3 . Fabricators . | . . . . Repair Stations . | . . . . Recycling Units . | . . . . Scanalyzers . | . . . . Garrison Access . | . . . . Terminal Hacks 2 | . . 2 . Record 2 | . . 2 . Fabricator Hacks . | . . . . Repair Station Hacks . | . . . . Recycling Unit Hacks . | . . . . Scanalyzer . | . . . . Garrison Access Hacks . | . . . . Unauthorized Hacks . | . . . . Terminals . | . . . . Fabricators . | . . . . Repair Stations . | . . . . Recycling Units . | . . . . Scanalyzers . | . . . . Garrison Access . | . . . . Data Cores Recovered . | . . . . Used . | . . . . Hacking Detections . | . . . . Full Trace Events . | . . . . Feedback Events . | . . . . Feedback Blocked . | . . . . Robot Schematics Acquired . | . . . . Robots Built . | . . . . Authchips . | . . . . Time . | . . . . Total Robot Build Rating . | . . . . Part Schematics Acquired . | . . . . Parts Built . | . . . . Authchips . | . . . . Time . | . . . . Total Part Build Rating . | . . . . Parts Repaired . | . . . . Time . | . . . . Parts Recycled . | . . . . Recycled Matter . | . . . . Retrieved Matter . | . . . . Retrieved Components . | . . . . Parts Scanalyzed . | . . . . Part Schematics Acquired . | . . . . Parts Damaged . | . . . . Bothacking | -11 -10 -9 -9 ------------ Run | Yrd Mat Mat Min Used RIF Installer . | . . . . Robots Hacked . | . . . . Non-combat . | . . . . Combat . | . . . . Robot Hacks Applied . | . . . . Relay Couplers Released . | . . . . Fabnet Peak Effective % . | . . . . Robots Rewired . | . . . . Allies Hacked . | . . . . Hacks Repelled . | . . . . Allies | -11 -10 -9 -9 -------- Run | Yrd Mat Mat Min Total Allies . | . . . . Largest Group . | . . . . Highest-Rated Group . | . . . . Highest-Rated Ally . | . . . . Total Orders . | . . . . Ally Attacks . | . . . . Total Damage . | . . . . Kills . | . . . . Allies Corrupted . | . . . . Allies Melted . | . . . . Intel | -11 -10 -9 -9 ------- Run | Yrd Mat Mat Min Robot Analysis Total . | . . . . Derelict Logs Recovered . | . . . . Drone Launches . | . . . . Drone Recoveries . | . . . . Exploration | -11 -10 -9 -9 ------------- Run | Yrd Mat Mat Min Turns Passed 2003 | 88 222 310 1383 Spaces Moved 631 | 68 125 96 342 Core 11 | 11 . . . Treads 362 | . . 68 294 Legs 258 | 57 125 28 48 Wheels . | . . . . Hover . | . . . . Flight . | . . . . Fastest Speed 50 | 50 120 120 320 Average Speed 272 | 108 120 261 364 Slowest Speed 750 | 120 120 320 750 Overloaded Moves . | . . . . Propulsion Burnouts . | . . . . Robots Hopped . | . . . . Cave-ins Triggered . | . . . . Exploration Rate (%) 22 | 4 16 9 61 Regions Visited 3 Branch Regions 1 Pre-discovered Areas . | . . . . Known Exits Taken . | . . . . Unknown Exits Taken 3 | 1 1 1 . Scrap Searched 1 | . . . 1 Spaces Dug . | . . . . Terrain Destroyed 32 | . . . 32 Melee . | . . . . Projectile . | . . . . AOE 32 | . . . 32 Terrain Rammed . | . . . . Walls Destroyed . | . . . . Machines Disabled . | . . . . Actions | -11 -10 -9 -9 --------- Run | Yrd Mat Mat Min Total 804 | 82 173 129 420 Wait 55 | . 26 8 21 Move 628 | 67 124 95 342 Hop . | . . . . Pick Up 25 | 9 5 3 8 Fast Attach . | . . . . Attach 11 | 6 1 1 3 Detach . | . . . . Swap 10 | . 2 3 5 Drop 10 | . 2 3 5 Fire 54 | . 13 15 26 Melee 10 | . . . 10 Ram . | . . . . Kick 1 | . . 1 . Crush . | . . . . Escape Stasis . | . . . . Rewire . | . . . . Trap . | . . . . Miscellaneous . | . . . . Route ------- -11/Scrapyard -10/Materials -9/Materials -9/Mines History --------- Turn | Location | Event 4 | -11/Scrapyard | Discovered new exit (range 15) 89 | -11/Scrapyard | Entered Materials 192 | -10/Materials | Discovered new exit (range 7) 308 | -10/Materials | Build established: Mutant 311 | -10/Materials | Entered another Materials area 311 | -9/Materials | Evolved 2 slots: Utility x2 475 | -9/Materials | Discovered new exit (range 13) 621 | -9/Materials | Entered Mines 929 | -9/Mines | Excavation squad dispatched 929 | -9/Mines | A large section of the Mines collapsed 1179 | -9/Mines | Excavation squad dispatched 1297 | -9/Mines | Received a Rocket Launcher from a helpful Derelict 1429 | -9/Mines | Excavation squad dispatched 1679 | -9/Mines | Excavation squad dispatched 1841 | -9/Mines | A weapon hastily lodged in a ceiling crevice suddenly fell to the ground 1929 | -9/Mines | Excavation squad dispatched 1973 | -9/Mines | Core integrity fell below 50% 1992 | -9/Mines | Core integrity fell below 20% 2004 | -9/Mines | Destroyed by G-34 Mercenary with Small Laser Last Messages --------------- 01841_ A Ripper has been hastily shoved under some rubble with a note attached: "Rip and tear!" 01849_ Acquired Ripper. 01852_ Dropped Particle Gun. 01857_ K-01 Serf cleans the Plasma Injector. 01888_ Acquired 34 matter. 01900_ Acquired Ion Engine. 01901_ Acquired 57 matter. 01909_ Acquired Aluminum Leg. 01922_ Acquired 9 matter. 01929_ ALERT: Derelict activity in mines confirmed. Dispatching additional escorted excavation squad. 01953_ Sensor Array destroyed. 01970_ Aluminum Leg destroyed. 01980_ Ion Engine destroyed. 01984_ Heat Sink destroyed. 01986_ G-34 Mercenary destroyed. 01989_ K-01 Serf collects debris. 02000_ Aluminum Leg destroyed. 02002_ K-01 Serf collects debris. Map ----- +----------------------------------------------------+ | | | | | | | | | | | | | | | | | | | | | | | | | ?????????????????????????????????????????????????? | | ?????????????????????????????????????????????????? | | ?????????????????????????????????????????????????? | | ?????????????????###?????????????????????????????? | | ???????????????### #????????????????????????????? | | ??????????????## #???????????????????????????? | | ??????????????# ???????????????????????????? | | ??????????????# ??????????????????????????? | | ??????????????# ??????????????????????????? | | ??????????????# ??????????????????????????? | | ??????????????# #????????????????###??????? | | ??????????????# ###????????????# ##?????? | | ???????????????# =%=##???######## ##????? | | ??????????????????# k @g########### #????? | | ??????????????????## !%=%[% #?????? | | ???????????????????## g !% = #??????? | | ????????????????????###g# #####% #?????### | | ??????????????????????# #####???# # ###?????# | | ?????????????????????? ??????#?# # #% ######### # | | ?????????????????????###?????## #* [#* * # | | ?????????????????????????????# # ## #%########### | | ???????????????????????????###? # %= *[##????????? | | ??????????????????????????## #### ##???????? | | ??????????????????????????# ## = #######?? | | ??????????????????????????# % ##? | | ??????????????????????????# #? | | ??????????????????????????## ## #? | | ?????????????????????####?## #### ##? | | ????????????????????## ## ##?# [ ##?? | | ???????????????????## ##??# ##?? | | ??????????????????## ##???# #?? | | ??????????????? ###????# #?? | | ??????????????? ## ##??????## ##?? | | ?????????????????? ?????## #????????# ####??? | | ?????????????????????????## ##????????# #?????? | | ??????????????????????????## ##?????????#*#?????? | | ???????????????????????????# #??????????#%#?????? | | ?????????????????????????### #######???##!####??? | +----------------------------------------------------+ Best States ------------- Heat Dissipation 38 Energy Generation 10 Energy Capacity 250 Matter Stores 400 Matter Capacity 400 Sight Range 16 Robot Scan Range 14 Terrain Scan Density 10 Evasion (%) 55 Recoil Reduction 2 Item Schematics ----------------- None Robot Schematics ------------------ None Fabricated ------------ Nothing Alien Tech Used ----------------- None Achievements -------------- None Challenges ------------ None Game ------ Seed AutogunIntegrityCharger Manual? 0 Play Time 00:07:37 Cumulative 16.1 hours Start 2024.03.19 @ 04:52:05 End 2024.03.19 @ 04:59:10 Sessions 1 Manual Loads 0 Difficulty Rogue Special Mode None Game No. 89 Rogue 89 Adventurer 0 Explorer 0 Win Type - Total 0 Types 0/0/0/0/0/0/0/0/0 Lore% 7 Gallery% 21 Achievement% 16 Wizard Run 0 Options --------- Layout 0 ASCII 0 Keyboard 0 Movement Arrows Keybinds 0 Fullscreen 2 Font 24/Cog Map View 76x50 Zoom Use 0% Tactical HUD 1 Map Filters NONE Filters NONE Steam 1 RUN: 86af380b-c56d-4961-beb8-060f33cb961b